[Event "Live Chess"]
[Site "Chess.com"]
[Date "2023.05.21"]
[Round "-"]
[White "YrrriKharkiv"]
[Black "CeladonFish"]
[Result "1-0"]
[WhiteElo "2045"]
[BlackElo "1080"]
[TimeControl "300"]
[EndTime "23:50:46 PDT"]
[Termination "YrrriKharkiv won by resignation"]

1. e4 {[%clk 0:04:56.9]} 1... d6 {[%clk 0:04:59.4]} 2. d4 {[%clk 0:04:54.3]}
2... Nf6 {[%clk 0:04:58.5]} 3. Nf3 {[%clk 0:04:51.5]} 3... Nxe4 {[%clk
0:04:56.5]} 4. Bd3 {[%clk 0:04:50.1]} 4... Nf6 {[%clk 0:04:55.2]} 5. O-O {[%clk
0:04:48.5]} 5... g6 {[%clk 0:04:54]} 6. Re1 {[%clk 0:04:42.7]} 6... Bg7 {[%clk
0:04:52]} 7. Qe2 {[%clk 0:04:41.9]} 7... O-O {[%clk 0:04:50.6]} 8. Qxe7 {[%clk
0:04:40.6]} 8... Re8 {[%clk 0:04:43.5]} 9. Qxd8 {[%clk 0:04:39.2]} 9... Rxd8
{[%clk 0:04:42.4]} 10. Nc3 {[%clk 0:04:33.8]} 10... Nc6 {[%clk 0:04:40.7]} 11.
Nb5 {[%clk 0:04:24.2]} 11... Rd7 {[%clk 0:04:32.5]} 12. Bg5 {[%clk 0:04:10.1]}
12... a6 {[%clk 0:04:30.8]} 13. Na3 {[%clk 0:04:03.6]} 13... b5 {[%clk
0:04:17.2]} 14. c3 {[%clk 0:04:00]} 14... Bb7 {[%clk 0:04:15.9]} 15. Nc2 {[%clk
0:03:58.9]} 15... a5 {[%clk 0:04:10.3]} 16. Bxb5 {[%clk 0:03:56.1]} 16... h6
{[%clk 0:03:58.1]} 17. Bxf6 {[%clk 0:03:54.1]} 17... Bxf6 {[%clk 0:03:56.9]} 18.
d5 {[%clk 0:03:53.8]} 1-0

[Event "Live Chess"]
[Site "Chess.com"]
[Date "2023.05.21"]
[Round "-"]
[White "raminguy"]
[Black "Nazarenko_vital"]
[Result "0-1"]
[WhiteElo "1934"]
[BlackElo "1636"]
[TimeControl "300"]
[EndTime "23:51:16 PDT"]
[Termination "Nazarenko_vital won on time"]

1. d4 {[%clk 0:04:58.4]} 1... Nf6 {[%clk 0:04:57.6]} 2. Nc3 {[%clk 0:04:57.3]}
2... e6 {[%clk 0:04:55.6]} 3. e4 {[%clk 0:04:56.1]} 3... c5 {[%clk 0:04:54.6]}
4. d5 {[%clk 0:04:54.8]} 4... d6 {[%clk 0:04:41.1]} 5. Nf3 {[%clk 0:04:52.7]}
5... h6 {[%clk 0:04:37.9]} 6. Bb5+ {[%clk 0:04:50.7]} 6... Bd7 {[%clk
0:04:24.9]} 7. dxe6 {[%clk 0:04:49.5]} 7... Bxb5 {[%clk 0:04:23.3]} 8. exf7+
{[%clk 0:04:48.5]} 8... Kxf7 {[%clk 0:04:22.4]} 9. Nxb5 {[%clk 0:04:47.6]} 9...
a6 {[%clk 0:04:19.8]} 10. Nc3 {[%clk 0:04:44.8]} 10... Be7 {[%clk 0:04:14.6]}
11. O-O {[%clk 0:04:42.2]} 11... Rf8 {[%clk 0:04:09.4]} 12. e5 {[%clk
0:04:33.7]} 12... dxe5 {[%clk 0:04:04.6]} 13. Nxe5+ {[%clk 0:04:28]} 13... Kg8
{[%clk 0:04:01.9]} 14. Ng6 {[%clk 0:04:24.2]} 14... Qxd1 {[%clk 0:04:00.4]} 15.
Rxd1 {[%clk 0:04:22.8]} 15... Re8 {[%clk 0:03:56.2]} 16. Bf4 {[%clk 0:04:09.2]}
16... Nc6 {[%clk 0:03:54.6]} 17. Nxe7+ {[%clk 0:03:46.8]} 17... Nxe7 {[%clk
0:03:44.7]} 18. Bd6 {[%clk 0:03:38.9]} 18... c4 {[%clk 0:03:42.8]} 19. Re1
{[%clk 0:03:31.5]} 19... Kf7 {[%clk 0:03:40.3]} 20. Re2 {[%clk 0:03:18.9]} 20...
Nc6 {[%clk 0:03:24.4]} 21. Rae1 {[%clk 0:03:16.7]} 21... Rxe2 {[%clk 0:03:21.6]}
22. Rxe2 {[%clk 0:03:16.6]} 22... Re8 {[%clk 0:03:05.2]} 23. Rxe8 {[%clk
0:03:14.3]} 23... Nxe8 {[%clk 0:03:02.1]} 24. Bc5 {[%clk 0:02:57.6]} 24... Ke6
{[%clk 0:02:44.3]} 25. Kf1 {[%clk 0:02:55.2]} 25... Nf6 {[%clk 0:02:29.3]} 26.
f3 {[%clk 0:02:49.9]} 26... Nd7 {[%clk 0:02:09.5]} 27. Bf2 {[%clk 0:02:40.6]}
27... Nb4 {[%clk 0:02:05.8]} 28. Bd4 {[%clk 0:02:30.4]} 28... Nf6 {[%clk
0:01:55.8]} 29. Ne4 {[%clk 0:02:21.6]} 29... Nxc2 {[%clk 0:01:52.6]} 30. Bxf6
{[%clk 0:02:18.8]} 30... gxf6 {[%clk 0:01:50.8]} 31. Nc5+ {[%clk 0:02:17.2]}
31... Kd5 {[%clk 0:01:47.6]} 32. Nxb7 {[%clk 0:02:16]} 32... Ne3+ {[%clk
0:01:46.1]} 33. Kf2 {[%clk 0:02:13.6]} 33... Nd1+ {[%clk 0:01:43.3]} 34. Ke2
{[%clk 0:02:07.1]} 34... Nxb2 {[%clk 0:01:43.2]} 35. Kd2 {[%clk 0:02:03.1]}
35... Nd3 {[%clk 0:01:40.7]} 36. Nd8 {[%clk 0:01:36.4]} 36... h5 {[%clk
0:01:37.4]} 37. g3 {[%clk 0:01:25.3]} 37... Ne5 {[%clk 0:01:34.1]} 38. Ke3
{[%clk 0:01:15.6]} 38... c3 {[%clk 0:01:31.5]} 39. Nb7 {[%clk 0:01:07.4]} 39...
c2 {[%clk 0:01:28.4]} 40. Kd2 {[%clk 0:01:05.2]} 40... Nxf3+ {[%clk 0:01:25.8]}
41. Kxc2 {[%clk 0:01:04.6]} 41... Nxh2 {[%clk 0:01:23.5]} 42. Kd3 {[%clk
0:00:46.7]} 42... Nf1 {[%clk 0:01:19.6]} 43. Ke2 {[%clk 0:00:44.4]} 43... Nxg3+
{[%clk 0:01:18]} 44. Kf3 {[%clk 0:00:44.3]} 44... Ne4 {[%clk 0:01:14.4]} 45. Na5
{[%clk 0:00:39.4]} 45... Nc3 {[%clk 0:01:07.6]} 46. a3 {[%clk 0:00:37.2]} 46...
f5 {[%clk 0:01:04.6]} 47. Nb3 {[%clk 0:00:35]} 47... Ne4 {[%clk 0:01:00.6]} 48.
Nc1 {[%clk 0:00:30.7]} 48... h4 {[%clk 0:00:58.1]} 49. Ne2 {[%clk 0:00:26.9]}
49... Ke5 {[%clk 0:00:55]} 50. Ng1 {[%clk 0:00:21.2]} 50... Ng5+ {[%clk
0:00:51.9]} 51. Kf2 {[%clk 0:00:17.6]} 51... f4 {[%clk 0:00:51.1]} 52. Ne2
{[%clk 0:00:14.6]} 52... h3 {[%clk 0:00:48.6]} 53. Nc1 {[%clk 0:00:11.8]} 53...
Ke4 {[%clk 0:00:45.9]} 54. Nb3 {[%clk 0:00:09.8]} 54... f3 {[%clk 0:00:43.2]}
55. Nc5+ {[%clk 0:00:09.1]} 55... Kd4 {[%clk 0:00:40.3]} 56. Nxa6 {[%clk
0:00:09]} 56... h2 {[%clk 0:00:36.6]} 57. Nb4 {[%clk 0:00:06.1]} 57... h1=Q
{[%clk 0:00:33.3]} 58. Nc2+ {[%clk 0:00:05.4]} 58... Ke4 {[%clk 0:00:29.4]} 59.
Ne1 {[%clk 0:00:03.5]} 59... Qh2+ {[%clk 0:00:26.1]} 60. Kf1 {[%clk 0:00:01.8]}
60... Qe2+ {[%clk 0:00:17.2]} 61. Kg1 {[%clk 0:00:01.7]} 61... Nh3+ {[%clk
0:00:15.3]} 0-1

[Event "Live Chess"]
[Site "Chess.com"]
[Date "2023.05.21"]
[Round "-"]
[White "MJMykh"]
[Black "toxic_rabbit"]
[Result "0-1"]
[WhiteElo "966"]
[BlackElo "2000"]
[TimeControl "300"]
[EndTime "23:51:22 PDT"]
[Termination "toxic_rabbit won by checkmate"]

1. e4 {[%clk 0:04:57.3]} 1... e6 {[%clk 0:04:59.1]} 2. d4 {[%clk 0:04:55.7]}
2... d5 {[%clk 0:04:58.5]} 3. e5 {[%clk 0:04:54.5]} 3... c5 {[%clk 0:04:57.5]}
4. Nf3 {[%clk 0:04:49.2]} 4... Nc6 {[%clk 0:04:56]} 5. dxc5 {[%clk 0:04:45]}
5... Bxc5 {[%clk 0:04:53.4]} 6. Nc3 {[%clk 0:04:44.8]} 6... d4 {[%clk
0:04:47.9]} 7. Ne4 {[%clk 0:04:43.3]} 7... Bb6 {[%clk 0:04:45.8]} 8. Bb5 {[%clk
0:04:39.3]} 8... Bc7 {[%clk 0:04:39.5]} 9. Bxc6+ {[%clk 0:04:33.3]} 9... bxc6
{[%clk 0:04:39.4]} 10. O-O {[%clk 0:04:32.3]} 10... Ne7 {[%clk 0:04:33.4]} 11.
c3 {[%clk 0:04:30.6]} 11... dxc3 {[%clk 0:04:31.5]} 12. Qxd8+ {[%clk 0:04:29.2]}
12... Bxd8 {[%clk 0:04:29.8]} 13. Nxc3 {[%clk 0:04:28.6]} 13... O-O {[%clk
0:04:27.6]} 14. Bg5 {[%clk 0:04:24.2]} 14... Nd5 {[%clk 0:04:25.6]} 15. Bxd8
{[%clk 0:04:21.7]} 15... Rxd8 {[%clk 0:04:22.2]} 16. Nxd5 {[%clk 0:04:20.8]}
16... cxd5 {[%clk 0:04:21.6]} 17. a3 {[%clk 0:04:14.4]} 17... Ba6 {[%clk
0:04:20.3]} 18. Rfd1 {[%clk 0:04:11.9]} 18... Rac8 {[%clk 0:04:19.8]} 19. Rac1
{[%clk 0:04:03.6]} 19... Rxc1 {[%clk 0:04:15.2]} 20. Rxc1 {[%clk 0:04:03.5]}
20... d4 {[%clk 0:04:14.8]} 21. Rd1 {[%clk 0:04:01.1]} 21... d3 {[%clk
0:04:06.3]} 22. Ne1 {[%clk 0:03:46.7]} 22... Kf8 {[%clk 0:04:02]} 23. h3 {[%clk
0:03:40.8]} 23... Ke7 {[%clk 0:04:01]} 24. Kh2 {[%clk 0:03:39.8]} 24... f6
{[%clk 0:04:00.6]} 25. exf6+ {[%clk 0:03:38.8]} 25... gxf6 {[%clk 0:04:00.5]}
26. Kg3 {[%clk 0:03:38.4]} 26... e5 {[%clk 0:03:58.2]} 27. Kf3 {[%clk
0:03:35.4]} 27... f5 {[%clk 0:03:56]} 28. g3 {[%clk 0:03:29]} 28... e4+ {[%clk
0:03:54.6]} 29. Kf4 {[%clk 0:03:28.3]} 29... Kf6 {[%clk 0:03:47.6]} 30. g4
{[%clk 0:03:26.5]} 30... fxg4 {[%clk 0:03:22.3]} 31. hxg4 {[%clk 0:03:23.1]}
31... Re8 {[%clk 0:03:12.3]} 32. g5+ {[%clk 0:03:11.1]} 32... Kg6 {[%clk
0:03:10.6]} 33. f3 {[%clk 0:03:08.1]} 33... e3 {[%clk 0:03:06.1]} 34. Kg3 {[%clk
0:02:36]} 34... d2 {[%clk 0:03:00.4]} 35. Nc2 {[%clk 0:02:26.7]} 35... Be2
{[%clk 0:02:53.8]} 36. Rh1 {[%clk 0:02:15.5]} 36... d1=Q {[%clk 0:02:51.1]} 37.
Rxd1 {[%clk 0:02:14.4]} 37... Bxd1 {[%clk 0:02:50.9]} 38. Ne1 {[%clk 0:02:11.8]}
38... e2 {[%clk 0:02:49.5]} 39. Kf2 {[%clk 0:02:10]} 39... Kxg5 {[%clk
0:02:47.6]} 40. Kg3 {[%clk 0:02:02.6]} 40... h5 {[%clk 0:02:44.7]} 41. Kh3
{[%clk 0:02:01.1]} 41... Kf4 {[%clk 0:02:43.5]} 42. Kg2 {[%clk 0:02:00.1]} 42...
Rg8+ {[%clk 0:02:42]} 43. Kf2 {[%clk 0:01:58.8]} 43... h4 {[%clk 0:02:40.3]} 44.
Ng2+ {[%clk 0:01:55.6]} 44... Rxg2+ {[%clk 0:02:38.6]} 45. Kxg2 {[%clk
0:01:53.7]} 45... e1=Q {[%clk 0:02:37.1]} 46. Kh3 {[%clk 0:01:53]} 46... Qg3#
{[%clk 0:02:36.3]} 0-1

[Event "Live Chess"]
[Site "Chess.com"]
[Date "2023.05.21"]
[Round "-"]
[White "f4nomore"]
[Black "Shepherds_Pie"]
[Result "0-1"]
[WhiteElo "1432"]
[BlackElo "1924"]
[TimeControl "300"]
[EndTime "23:51:23 PDT"]
[Termination "Shepherds_Pie won by resignation"]

1. d4 {[%clk 0:04:56.6]} 1... Nf6 {[%clk 0:04:57.4]} 2. Bg5 {[%clk 0:04:53.9]}
2... Ne4 {[%clk 0:04:55.7]} 3. Bh4 {[%clk 0:04:51.9]} 3... d5 {[%clk 0:04:54.4]}
4. Nd2 {[%clk 0:04:38.8]} 4... c5 {[%clk 0:04:51.4]} 5. Nxe4 {[%clk 0:04:35.3]}
5... dxe4 {[%clk 0:04:50.4]} 6. dxc5 {[%clk 0:04:33.6]} 6... Qa5+ {[%clk
0:04:49.2]} 7. c3 {[%clk 0:04:28.9]} 7... Qxc5 {[%clk 0:04:47.9]} 8. Qa4+ {[%clk
0:04:24.3]} 8... Bd7 {[%clk 0:04:45.7]} 9. Qxe4 {[%clk 0:04:18.1]} 9... Nc6
{[%clk 0:04:44.4]} 10. O-O-O {[%clk 0:04:06.4]} 10... O-O-O {[%clk 0:04:39.8]}
11. e3 {[%clk 0:03:59.7]} 11... g6 {[%clk 0:04:36.1]} 12. Nf3 {[%clk 0:03:47.7]}
12... Bg7 {[%clk 0:04:33.8]} 13. Bg3 {[%clk 0:03:15.6]} 13... Bf5 {[%clk
0:04:30.9]} 14. Qf4 {[%clk 0:02:54.8]} 14... e5 {[%clk 0:04:24.9]} 15. Rxd8+
{[%clk 0:02:46.9]} 15... Rxd8 {[%clk 0:04:22.9]} 16. Qh4 {[%clk 0:02:37.8]}
16... Qd5 {[%clk 0:04:03.7]} 17. Be2 {[%clk 0:02:30.9]} 17... Qxa2 {[%clk
0:04:01.6]} 0-1

[Event "Live Chess"]
[Site "Chess.com"]
[Date "2023.05.21"]
[Round "-"]
[White "Mikhail_Golubev"]
[Black "AttackingSnowLeopard"]
[Result "0-1"]
[WhiteElo "2478"]
[BlackElo "2167"]
[TimeControl "300"]
[EndTime "23:51:31 PDT"]
[Termination "AttackingSnowLeopard won on time"]

1. e4 {[%clk 0:04:58.9]} 1... e5 {[%clk 0:04:54.1]} 2. Nf3 {[%clk 0:04:55.8]}
2... Nc6 {[%clk 0:04:53.7]} 3. Bc4 {[%clk 0:04:54.1]} 3... Bc5 {[%clk 0:04:52]}
4. c3 {[%clk 0:04:52.5]} 4... Nf6 {[%clk 0:04:50.9]} 5. d4 {[%clk 0:04:52]} 5...
exd4 {[%clk 0:04:50.1]} 6. cxd4 {[%clk 0:04:51.9]} 6... Bb4+ {[%clk 0:04:49]} 7.
Nbd2 {[%clk 0:04:51.5]} 7... d5 {[%clk 0:04:45]} 8. exd5 {[%clk 0:04:49.4]} 8...
Nxd5 {[%clk 0:04:44.7]} 9. O-O {[%clk 0:04:48.7]} 9... O-O {[%clk 0:04:43.2]}
10. a3 {[%clk 0:04:48.3]} 10... Be7 {[%clk 0:04:40.8]} 11. Re1 {[%clk
0:04:46.5]} 11... Nb6 {[%clk 0:04:32]} 12. Ba2 {[%clk 0:04:44.6]} 12... Bg4
{[%clk 0:04:26.3]} 13. h3 {[%clk 0:04:33.8]} 13... Bxf3 {[%clk 0:04:19.2]} 14.
Nxf3 {[%clk 0:04:27.8]} 14... Bf6 {[%clk 0:04:18.6]} 15. Re4 {[%clk 0:03:47.5]}
15... Qd7 {[%clk 0:04:04.7]} 16. Bf4 {[%clk 0:03:27.3]} 16... Rfe8 {[%clk
0:04:00.4]} 17. Rxe8+ {[%clk 0:03:14.9]} 17... Rxe8 {[%clk 0:03:58.2]} 18. d5
{[%clk 0:02:26.8]} 18... Ne5 {[%clk 0:03:51.7]} 19. Rc1 {[%clk 0:02:05]} 19...
Nxf3+ {[%clk 0:03:23.1]} 20. Qxf3 {[%clk 0:02:04.9]} 20... Be5 {[%clk
0:03:22.5]} 21. Bxe5 {[%clk 0:00:32]} 21... Rxe5 {[%clk 0:03:18.1]} 22. Qc3
{[%clk 0:00:29.5]} 22... Re7 {[%clk 0:03:16]} 23. Qa5 {[%clk 0:00:26.9]} 23...
a6 {[%clk 0:03:10.2]} 24. Qb4 {[%clk 0:00:24.3]} 24... h6 {[%clk 0:02:58.8]} 25.
a4 {[%clk 0:00:23.4]} 25... Re2 {[%clk 0:02:42.1]} 26. a5 {[%clk 0:00:17.3]}
26... Qf5 {[%clk 0:02:10.5]} 27. Qd4 {[%clk 0:00:16.4]} 27... Nc8 {[%clk
0:01:55.4]} 28. Rxc7 {[%clk 0:00:14.9]} 28... Nd6 {[%clk 0:01:54.8]} 29. Rc1
{[%clk 0:00:02.1]} 29... Qg5 {[%clk 0:01:40.7]} 0-1

[Event "Live Chess"]
[Site "Chess.com"]
[Date "2023.05.21"]
[Round "-"]
[White "Biranidun"]
[Black "seasidecastle27"]
[Result "1-0"]
[WhiteElo "2563"]
[BlackElo "1775"]
[TimeControl "300"]
[EndTime "23:51:36 PDT"]
[Termination "Biranidun won by checkmate"]

1. e4 {[%clk 0:04:58.7]} 1... d6 {[%clk 0:04:58.9]} 2. d4 {[%clk 0:04:57.7]}
2... e5 {[%clk 0:04:57.4]} 3. Nf3 {[%clk 0:04:56.4]} 3... exd4 {[%clk
0:04:54.5]} 4. Nxd4 {[%clk 0:04:55.3]} 4... Bd7 {[%clk 0:04:53.1]} 5. Nc3 {[%clk
0:04:54.7]} 5... Nc6 {[%clk 0:04:52]} 6. Be3 {[%clk 0:04:53.2]} 6... Nf6 {[%clk
0:04:49.8]} 7. Qd2 {[%clk 0:04:50.6]} 7... Be7 {[%clk 0:04:48.8]} 8. O-O-O
{[%clk 0:04:49.5]} 8... O-O {[%clk 0:04:46.1]} 9. f3 {[%clk 0:04:49.1]} 9... a6
{[%clk 0:04:41.2]} 10. g4 {[%clk 0:04:48.2]} 10... Nxd4 {[%clk 0:04:33.6]} 11.
Bxd4 {[%clk 0:04:48.1]} 11... b5 {[%clk 0:04:31.8]} 12. h4 {[%clk 0:04:46.8]}
12... c5 {[%clk 0:04:29.6]} 13. Be3 {[%clk 0:04:33]} 13... b4 {[%clk 0:04:24.7]}
14. Ne2 {[%clk 0:04:30.7]} 14... a5 {[%clk 0:04:16.7]} 15. h5 {[%clk 0:04:28.7]}
15... a4 {[%clk 0:03:59.7]} 16. g5 {[%clk 0:04:27.9]} 16... Ne8 {[%clk
0:03:58.1]} 17. g6 {[%clk 0:04:21.9]} 17... fxg6 {[%clk 0:03:52.2]} 18. hxg6
{[%clk 0:04:21]} 18... Nf6 {[%clk 0:03:44.5]} 19. Nf4 {[%clk 0:04:19.4]} 19...
h6 {[%clk 0:03:35.2]} 20. Bc4+ {[%clk 0:04:17.8]} 20... Kh8 {[%clk 0:03:27.6]}
21. Ne6 {[%clk 0:04:07.6]} 21... Bxe6 {[%clk 0:03:25.1]} 22. Bxe6 {[%clk
0:04:06]} 22... Ng8 {[%clk 0:03:16.2]} 23. Rdg1 {[%clk 0:03:39.1]} 23... Rxf3
{[%clk 0:03:08.4]} 24. Bxh6 {[%clk 0:03:32.3]} 24... Nxh6 {[%clk 0:02:54.7]} 25.
Rxh6+ {[%clk 0:03:30.2]} 25... gxh6 {[%clk 0:02:52.7]} 26. Qxh6# {[%clk
0:03:30.1]} 1-0

[Event "Live Chess"]
[Site "Chess.com"]
[Date "2023.05.21"]
[Round "-"]
[White "mirandaasilva"]
[Black "BillythekidFellowes"]
[Result "0-1"]
[WhiteElo "1628"]
[BlackElo "2019"]
[TimeControl "300"]
[EndTime "23:51:53 PDT"]
[Termination "BillythekidFellowes won by resignation"]

1. g3 {[%clk 0:04:58]} 1... d5 {[%clk 0:04:58.6]} 2. Bg2 {[%clk 0:04:57.2]} 2...
Nf6 {[%clk 0:04:57.9]} 3. Nf3 {[%clk 0:04:55.4]} 3... c6 {[%clk 0:04:57.3]} 4.
d3 {[%clk 0:04:53.9]} 4... Nbd7 {[%clk 0:04:57.2]} 5. O-O {[%clk 0:04:52.2]}
5... e5 {[%clk 0:04:56.5]} 6. e4 {[%clk 0:04:49]} 6... Bd6 {[%clk 0:04:55.7]} 7.
Re1 {[%clk 0:04:46]} 7... O-O {[%clk 0:04:55.1]} 8. exd5 {[%clk 0:04:43.2]} 8...
cxd5 {[%clk 0:04:55]} 9. Nbd2 {[%clk 0:04:38.5]} 9... Qb6 {[%clk 0:04:53.5]} 10.
h4 {[%clk 0:04:35.8]} 10... Ng4 {[%clk 0:04:52.2]} 11. Qe2 {[%clk 0:04:07.8]}
11... Bc5 {[%clk 0:04:47.7]} 12. d4 {[%clk 0:04:06.8]} 12... exd4 {[%clk
0:04:46.3]} 13. Nb3 {[%clk 0:04:06.3]} 13... d3 {[%clk 0:04:30]} 14. cxd3 {[%clk
0:03:24.8]} 14... Bxf2+ {[%clk 0:04:26.6]} 15. Kf1 {[%clk 0:03:23.8]} 15... Bxg3
{[%clk 0:04:21.8]} 16. Be3 {[%clk 0:03:11]} 16... Nxe3+ {[%clk 0:04:20.1]} 17.
Qxe3 {[%clk 0:03:10.1]} 17... Bxe1 {[%clk 0:04:19.2]} 18. Qxb6 {[%clk
0:03:07.3]} 18... Nxb6 {[%clk 0:04:19.1]} 19. Rxe1 {[%clk 0:03:05.7]} 19... Bf5
{[%clk 0:04:18.4]} 20. Nfd4 {[%clk 0:03:04.4]} 20... Bxd3+ {[%clk 0:04:16.9]}
21. Kg1 {[%clk 0:03:04]} 21... Be4 {[%clk 0:04:16.2]} 22. Bxe4 {[%clk
0:03:02.1]} 22... dxe4 {[%clk 0:04:16.1]} 23. Rxe4 {[%clk 0:03:01.9]} 23... Rfe8
{[%clk 0:04:14.8]} 24. Rg4 {[%clk 0:03:01.8]} 24... Rad8 {[%clk 0:04:13.2]} 25.
Rg3 {[%clk 0:03:01.7]} 25... Re4 {[%clk 0:04:10.9]} 26. Kf2 {[%clk 0:03:01.4]}
26... Rdxd4 {[%clk 0:04:09.1]} 27. Nxd4 {[%clk 0:02:58.6]} 27... Rxd4 {[%clk
0:04:09]} 28. Re3 {[%clk 0:02:57.6]} 28... Kf8 {[%clk 0:04:08.5]} 29. Ke1 {[%clk
0:02:57.5]} 29... Nd5 {[%clk 0:04:07.2]} 30. h5 {[%clk 0:02:56.3]} 30... Nxe3
{[%clk 0:04:06.3]} 31. b4 {[%clk 0:02:55.7]} 31... Nc2+ {[%clk 0:04:05.3]} 32.
Ke2 {[%clk 0:02:54]} 32... Nxb4 {[%clk 0:04:05.2]} 33. a3 {[%clk 0:02:53.7]}
33... Nc2 {[%clk 0:04:04.3]} 34. h6 {[%clk 0:02:53.3]} 34... gxh6 {[%clk
0:04:03.5]} 35. a4 {[%clk 0:02:52.4]} 35... Rxa4 {[%clk 0:04:02.6]} 36. Kd1
{[%clk 0:02:51.6]} 36... Ra2 {[%clk 0:04:02.5]} 37. Ke2 {[%clk 0:02:51.1]} 37...
b5 {[%clk 0:04:02.4]} 38. Kd3 {[%clk 0:02:50.3]} 38... b4 {[%clk 0:04:02.3]} 39.
Kc4 {[%clk 0:02:49.3]} 39... Rb2 {[%clk 0:04:01.6]} 40. Kd3 {[%clk 0:02:47.6]}
40... a5 {[%clk 0:04:01.5]} 41. Kc4 {[%clk 0:02:46.7]} 41... a4 {[%clk
0:04:00.4]} 42. Kb5 {[%clk 0:02:46.6]} 42... a3 {[%clk 0:03:59.8]} 43. Ka4
{[%clk 0:02:46.5]} 43... a2 {[%clk 0:03:59.7]} 44. Kb5 {[%clk 0:02:46.1]} 44...
a1=Q {[%clk 0:03:58.5]} 45. Kc4 {[%clk 0:02:46]} 45... b3 {[%clk 0:03:57.3]} 46.
Kb5 {[%clk 0:02:45.9]} 46... Qa3 {[%clk 0:03:55.4]} 47. Kc4 {[%clk 0:02:45.8]}
47... Qb4+ {[%clk 0:03:54.9]} 0-1

[Event "Live Chess"]
[Site "Chess.com"]
[Date "2023.05.21"]
[Round "-"]
[White "Jo1ts"]
[Black "Pandreq"]
[Result "0-1"]
[WhiteElo "838"]
[BlackElo "1252"]
[TimeControl "300"]
[EndTime "23:51:57 PDT"]
[Termination "Pandreq won by resignation"]

1. d4 {[%clk 0:04:58.8]} 1... d5 {[%clk 0:04:58.5]} 2. Bf4 {[%clk 0:04:58.1]}
2... c6 {[%clk 0:04:57.2]} 3. Nf3 {[%clk 0:04:57.7]} 3... Nf6 {[%clk 0:04:55.8]}
4. e3 {[%clk 0:04:57]} 4... Bf5 {[%clk 0:04:54.5]} 5. c3 {[%clk 0:04:53.3]} 5...
e6 {[%clk 0:04:52.6]} 6. Bd3 {[%clk 0:04:52.7]} 6... Bxd3 {[%clk 0:04:51.1]} 7.
Qxd3 {[%clk 0:04:52.6]} 7... Nbd7 {[%clk 0:04:49.9]} 8. Nbd2 {[%clk 0:04:49.2]}
8... c5 {[%clk 0:04:47.7]} 9. O-O {[%clk 0:04:45.9]} 9... a6 {[%clk 0:04:39.2]}
10. Rac1 {[%clk 0:04:36.5]} 10... b5 {[%clk 0:04:35.1]} 11. b3 {[%clk
0:04:33.5]} 11... c4 {[%clk 0:04:29.1]} 12. bxc4 {[%clk 0:04:29.9]} 12... bxc4
{[%clk 0:04:29]} 13. Qc2 {[%clk 0:04:29.3]} 13... Ba3 {[%clk 0:04:21.5]} 14. Rb1
{[%clk 0:04:23.6]} 14... O-O {[%clk 0:04:18.7]} 15. Qa4 {[%clk 0:04:19.3]} 15...
Be7 {[%clk 0:04:07.6]} 16. Ne5 {[%clk 0:04:16.3]} 16... Nxe5 {[%clk 0:04:03.6]}
17. Bxe5 {[%clk 0:04:16.2]} 17... Nd7 {[%clk 0:04:00.6]} 18. Nf3 {[%clk
0:04:05.9]} 18... Bf6 {[%clk 0:03:36]} 19. Bxf6 {[%clk 0:03:55]} 19... Nxf6
{[%clk 0:03:34.4]} 20. Rfe1 {[%clk 0:03:52.9]} 20... Ne4 {[%clk 0:03:32.8]} 21.
Ne5 {[%clk 0:03:35.5]} 21... Nxc3 {[%clk 0:03:28.2]} 22. Qc2 {[%clk 0:03:23.8]}
22... Nxb1 {[%clk 0:03:25.5]} 23. Qxb1 {[%clk 0:03:23.7]} 23... Rb8 {[%clk
0:03:20.2]} 24. Qd1 {[%clk 0:03:18.8]} 24... Rb7 {[%clk 0:03:03.7]} 25. e4
{[%clk 0:03:12.6]} 25... Qa5 {[%clk 0:02:56.8]} 26. Re2 {[%clk 0:02:58.4]} 26...
Rfb8 {[%clk 0:02:49.4]} 0-1